bitfinex/quotes_BTCUSD_20230906
["timestamp","ask_amount","ask_price","bid_price","bid_amount"]
[1694017482759,0.26524931,25610.0,25609.0,3.64854527]
[1694017482961,0.54587344,25610.0,25609.0,3.64854527]
[1694017483589,0.26412767,25610.0,25609.0,4.07074527]
[1694017483796,0.26412767,25610.0,25609.0,4.45739054]
[1694017484000,0.26412767,25610.0,25609.0,4.52429054]
[1694017484217,0.26412767,25610.0,25609.0,4.52393054]
[1694017484401,0.26412767,25610.0,25609.0,4.52381054]
[1694017484636,0.26412767,25610.0,25609.0,4.45739054]
[1694017486974,0.26412767,25610.0,25609.0,4.52609054]
[1694017487232,0.26412767,25610.0,25609.0,4.52585054]
[1694017487476,0.26412767,25610.0,25609.0,4.53185054]
[1694017487693,0.25631883,25610.0,25609.0,4.53557054]
[1694017487825,0.14032069,25611.0,25610.0,0.01899936]
[1694017488027,0.14032069,25611.0,25610.0,4.80066892]
[1694017488028,0.09355001,25611.0,25610.0,4.80066892]
[1694017488233,0.24167505,25613.0,25610.0,4.91700892]
[1694017488453,0.00780884,25613.0,25612.0,0.91974527]
[1694017488650,0.00780884,25613.0,25612.0,5.31080554]
[1694017488651,0.24160744,25613.0,25612.0,5.31080554]
[1694017488889,0.24160744,25613.0,25612.0,5.69974554]
[1694017489071,0.24160744,25613.0,25612.0,5.70490554]
[1694017489258,0.24160744,25613.0,25612.0,5.63380554]
[1694017489510,0.24160744,25613.0,25612.0,5.72140554]
[1694017489688,0.00780884,25613.0,25612.0,5.72146554]
[1694017489939,0.00880884,25613.0,25612.0,5.73206554]
[1694017490124,0.00880884,25613.0,25612.0,5.73152554]
[1694017490368,0.00880884,25613.0,25612.0,5.73092554]
[1694017490575,0.00780884,25613.0,25612.0,5.71876554]
[1694017490776,0.00980884,25613.0,25612.0,5.74744554]
[1694017490989,0.00880884,25613.0,25612.0,5.65280554]
[1694017491210,0.001,25613.0,25612.0,5.65280554]
[1694017491415,0.09348789,25616.0,25615.0,0.01899936]
[1694017491613,0.10129673,25617.0,25616.0,0.1221]
[1694017491822,0.10129673,25617.0,25616.0,2.90336927]
[1694017492016,0.00780884,25617.0,25616.0,4.44279327]
[1694017492221,0.00780884,25617.0,25616.0,4.52313327]
[1694017492430,0.00780884,25617.0,25616.0,4.78924251]
[1694017492641,0.00780884,25617.0,25616.0,4.78912251]
[1694017492850,0.00780884,25617.0,25616.0,4.78126251]
[1694017493052,0.00780884,25617.0,25616.0,4.29472251]
[1694017493259,0.10129673,25617.0,25616.0,4.29472251]
[1694017493666,0.00780884,25617.0,25616.0,4.29472251]
[1694017493871,0.08575239,25617.0,25616.0,4.29472251]
[1694017494071,0.08575239,25617.0,25616.0,4.31972251]
[1694017494284,0.08675239,25617.0,25616.0,4.34472251]
[1694017494683,0.08575239,25617.0,25616.0,4.31972251]
[1694017494891,0.08675239,25617.0,25616.0,4.33972251]
[1694017495627,0.08675239,25617.0,25616.0,4.31472251]
[1694017495827,0.08675239,25617.0,25616.0,4.33172251]
[1694017496836,0.001,25617.0,25616.0,4.33172251]
[1694017499405,0.001,25617.0,25616.0,4.06879327]
[1694017499609,0.001,25617.0,25616.0,3.94669327]
[1694017502812,0.001,25617.0,25616.0,4.06879327]
[1694017507262,0.001,25617.0,25616.0,4.13725327]
[1694017507460,0.001,25617.0,25616.0,4.06879327]
[1694017507662,0.001,25617.0,25616.0,4.45543854]
[1694017509703,0.001,25617.0,25616.0,4.33333854]
[1694017510354,0.001,25617.0,25616.0,3.94669327]
[1694017513918,0.2548771,25617.0,25616.0,1.698524]
[1694017514126,1.43769715,25617.0,25616.0,0.137]
[1694017514533,1.62437091,25617.0,25616.0,0.137]
[1694017514737,1.60380191,25617.0,25616.0,0.137]
[1694017514943,1.83760051,25617.0,25616.0,0.137]
[1694017515186,1.83660051,25617.0,25616.0,0.1]
[1694017515770,1.64992675,25617.0,25616.0,0.103]
[1694017515970,1.39705029,25617.0,25616.0,0.103]
[1694017517272,0.89268265,25617.0,25616.0,0.103]
[1694017518134,0.61631929,25617.0,25616.0,0.103]
[1694017518648,0.8617795,25617.0,25616.0,0.103]
[1694017519490,0.6279809,25617.0,25616.0,0.103]
[1694017519904,0.86119639,25617.0,25616.0,0.103]
[1694017520321,0.6279809,25617.0,25616.0,0.103]
[1694017521151,0.62896938,25617.0,25616.0,0.103]
[1694017521973,0.62896938,25617.0,25616.0,0.883762]
[1694017522378,0.62896938,25617.0,25616.0,0.103]
[1694017522800,0.56396938,25617.0,25616.0,0.103]
[1694017523617,0.56396938,25617.0,25616.0,0.883762]
[1694017525221,0.56396938,25617.0,25616.0,0.883862]
[1694017526802,0.56396938,25617.0,25616.0,1.664624]
[1694017527407,0.44586874,25617.0,25616.0,1.664624]
[1694017528615,0.72574737,25617.0,25616.0,1.664624]
[1694017529273,0.44586874,25617.0,25616.0,3.226148]
[1694017529474,0.20040853,25617.0,25616.0,3.226148]
[1694017529886,0.31343296,25617.0,25616.0,3.226148]
[1694017530085,0.43384149,25617.0,25616.0,3.226148]
[1694017530515,0.43384149,25617.0,25616.0,3.61279327]
[1694017530724,0.62060319,25617.0,25616.0,3.61279327]
[1694017531478,0.39384149,25617.0,25616.0,3.61279327]
[1694017531675,0.43384149,25617.0,25616.0,3.61279327]
[1694017532876,0.41384149,25617.0,25616.0,3.61279327]
[1694017533326,0.43384149,25617.0,25616.0,3.226148]
[1694017533532,0.20040853,25617.0,25616.0,2.445386]
[1694017533682,0.20040853,25617.0,25616.0,3.226148]
[1694017534676,0.18040853,25617.0,25616.0,3.226148]
[1694017534879,0.41395061,25617.0,25616.0,3.61279327]
[1694017535092,0.41395061,25617.0,25616.0,3.99943854]
[1694017535093,0.35395061,25617.0,25616.0,3.99943854]
[1694017535297,0.14013191,25617.0,25616.0,4.90230054]
[1694017537443,0.3269685,25617.0,25616.0,4.39355527]
[1694017537645,0.2980966,25617.0,25616.0,4.39355527]
[1694017537888,0.17853393,25617.0,25616.0,4.39355527]
[1694017540553,0.41207601,25617.0,25616.0,4.39355527]
[1694017540763,0.29820638,25617.0,25616.0,4.39355527]
[1694017541712,0.29820638,25617.0,25616.0,3.61279327]
[1694017544004,0.53174846,25617.0,25616.0,3.61279327]
[1694017545233,0.31867717,25617.0,25616.0,3.61279327]
[1694017546044,0.17853393,25617.0,25616.0,3.61279327]
[1694017546249,0.17853393,25617.0,25616.0,2.445386]
[1694017546833,0.29434705,25617.0,25616.0,3.226148]
[1694017547405,0.17853393,25617.0,25616.0,3.5487628]
[1694017547703,0.29440023,25617.0,25616.0,3.5487628]
[1694017548389,0.29440023,25617.0,25616.0,3.226148]
[1694017549214,0.52794231,25617.0,25616.0,3.226148]
[1694017553166,0.34940838,25617.0,25616.0,3.226148]
[1694017557305,0.34940838,25617.0,25616.0,3.61279327]
[1694017557732,0.42034605,25617.0,25616.0,3.61279327]
[1694017557928,0.18680397,25617.0,25616.0,3.99943854]
[1694017558678,0.32690027,25617.0,25616.0,3.99943854]
[1694017562979,0.1400963,25617.0,25616.0,3.99943854]
[1694017563186,0.18680397,25617.0,25616.0,3.99943854]
[1694017564470,0.18680397,25617.0,25616.0,2.445386]
[1694017564471,0.42505041,25617.0,25616.0,2.445386]
[1694017564700,0.58850278,25617.0,25616.0,2.445386]
[1694017567181,0.3549607,25617.0,25616.0,1.664624]
[1694017567517,0.3549607,25617.0,25616.0,2.445386]
[1694017569717,0.63483933,25617.0,25616.0,2.445386]
[1694017569919,0.3549607,25617.0,25616.0,2.445386]
[1694017570143,0.63483933,25617.0,25616.0,2.445386]
[1694017570791,0.63483933,25617.0,25616.0,0.1031]
[1694017570792,0.69483933,25617.0,25616.0,0.1031]
[1694017571213,0.69483933,25617.0,25616.0,0.883862]
[1694017574225,0.69483933,25617.0,25616.0,1.664624]
[1694017575383,0.41608405,25617.0,25616.0,1.664624]
[1694017575605,0.69654447,25617.0,25616.0,1.664624]
[1694017575806,0.41608405,25617.0,25616.0,1.664624]
[1694017576009,0.69655858,25617.0,25616.0,1.664624]
[1694017578009,0.69655858,25617.0,25616.0,2.445386]
[1694017579000,0.69655858,25617.0,25616.0,0.883862]
[1694017579210,0.41608405,25617.0,25616.0,0.1031]
[1694017579416,1.97754605,25617.0,25616.0,0.1031]
[1694017579620,1.40106881,25617.0,25616.0,0.1031]
[1694017579835,0.62033781,25617.0,25616.0,0.1031]
[1694017580239,1.19681505,25617.0,25616.0,0.1001]
[1694017580449,1.40606881,25617.0,25616.0,0.1001]
[1694017581168,2.18679981,25617.0,25616.0,0.1001]
[1694017581378,2.18779981,25617.0,25616.0,0.1001]
[1694017582679,3.09063081,25617.0,25616.0,0.1001]
[1694017583093,1.52916881,25617.0,25616.0,0.1001]
[1694017583317,0.74843781,25617.0,25616.0,0.1001]
[1694017583523,0.54418405,25617.0,25616.0,0.1001]
[1694017583931,0.74843781,25617.0,25616.0,0.1001]
[1694017584549,1.52916881,25617.0,25616.0,0.1001]
[1694017585693,0.74843781,25617.0,25616.0,0.1001]
[1694017586921,0.54418405,25617.0,25616.0,0.1001]
[1694017587146,1.32491505,25617.0,25616.0,0.1001]
[1694017587358,1.52916881,25617.0,25616.0,0.1001]
[1694017587567,0.74843781,25617.0,25616.0,0.1001]
[1694017588007,1.32491505,25617.0,25616.0,0.1001]
[1694017588259,1.52916881,25617.0,25616.0,0.1001]
[1694017590482,0.74843781,25617.0,25616.0,0.1001]
[1694017590713,0.54418405,25617.0,25616.0,0.1001]
[1694017595189,4.597608,25617.0,25616.0,0.1001]
[1694017595394,4.80186176,25617.0,25616.0,0.1001]
[1694017596232,4.95817076,25617.0,25616.0,0.1001]
[1694017596439,4.58659331,25617.0,25616.0,0.1001]
[1694017596639,4.60759331,25617.0,25616.0,0.1021]
[1694017597062,4.59359331,25617.0,25616.0,0.1021]
[1694017597285,4.61559331,25617.0,25616.0,0.1041]
[1694017597703,4.58559331,25617.0,25616.0,0.1001]
[1694017597906,4.33660964,25617.0,25616.0,0.1001]
[1694017598122,4.78483491,25617.0,25616.0,0.1021]
[1694017598342,4.85579491,25617.0,25616.0,0.1021]
[1694017598613,4.85705491,25617.0,25616.0,0.1021]
[1694017598830,4.84793491,25617.0,25616.0,0.0021]
[1694017599041,5.14937491,25617.0,25616.0,0.0021]
[1694017599246,5.31675491,25617.0,25616.0,0.0041]
[1694017599467,5.31873491,25617.0,25616.0,0.0041]
[1694017599675,5.31133491,25617.0,25616.0,0.0021]
[1694017599897,5.31133491,25617.0,25616.0,0.00164148]
[1694017599898,5.32651491,25617.0,25616.0,0.00164148]
[1694017600107,5.32651491,25617.0,25616.0,0.002]
[1694017600108,5.30949491,25617.0,25616.0,0.002]
[1694017600315,5.30967491,25617.0,25616.0,0.002]
[1694017600516,5.33331491,25617.0,25616.0,0.004]
[1694017600696,6.23343491,25617.0,25616.0,0.004]
[1694017600954,6.23571491,25617.0,25616.0,0.004]
[1694017601186,6.23577491,25617.0,25616.0,0.004]
[1694017601389,6.23733491,25617.0,25616.0,0.004]
[1694017601594,6.23721491,25617.0,25616.0,0.004]
[1694017602019,6.65031491,25617.0,25616.0,0.004]
[1694017602205,6.65115491,25617.0,25616.0,0.004]
[1694017602375,6.64917491,25617.0,25616.0,0.004]
[1694017602584,7.77661491,25617.0,25616.0,0.004]
[1694017602787,7.77703491,25617.0,25616.0,0.004]
[1694017602961,7.77469491,25617.0,25616.0,0.004]
[1694017603376,7.77979491,25617.0,25616.0,0.004]
[1694017604383,7.78033491,25617.0,25616.0,0.004]
[1694017604610,7.78129491,25617.0,25616.0,0.004]
[1694017604809,7.78207491,25617.0,25616.0,0.004]
[1694017605206,7.78189491,25617.0,25616.0,0.004]
[1694017605381,7.78555491,25617.0,25616.0,0.004]
[1694017605581,7.28615491,25617.0,25616.0,0.004]
[1694017605781,7.28195491,25617.0,25616.0,0.004]
[1694017606062,7.28183491,25617.0,25616.0,0.004]
[1694017606262,7.28105491,25617.0,25616.0,0.004]
[1694017606504,7.27685491,25617.0,25616.0,0.004]
[1694017606864,7.27673491,25617.0,25616.0,0.0041]
[1694017607044,7.28057491,25617.0,25616.0,0.0041]
[1694017607218,7.28129491,25617.0,25616.0,0.0041]
[1694017607418,7.28273491,25617.0,25616.0,0.0041]
[1694017607624,7.27497491,25617.0,25616.0,0.0021]
[1694017607802,7.25109491,25617.0,25616.0,0.0001]
[1694017608008,7.29915491,25617.0,25616.0,0.0031]
[1694017608216,7.30023491,25617.0,25616.0,0.0031]
[1694017608438,7.30059491,25617.0,25616.0,0.0031]
[1694017608638,7.29999491,25617.0,25616.0,0.0031]
[1694017608844,7.30143491,25617.0,25616.0,0.0031]
[1694017609068,7.30107491,25617.0,25616.0,0.0031]
[1694017609238,7.33218777,25617.0,25616.0,0.0031]
[1694017609446,7.33170777,25617.0,25616.0,0.0031]
[1694017609702,7.32972777,25617.0,25616.0,0.0031]
[1694017609839,7.32978777,25617.0,25616.0,0.0031]
[1694017610039,7.33038777,25617.0,25616.0,0.0031]
[1694017610289,7.33074777,25617.0,25616.0,0.0031]
[1694017610486,7.32990777,25617.0,25616.0,0.0031]
[1694017610635,7.33002777,25617.0,25616.0,0.0031]
[1694017611031,7.33038777,25617.0,25616.0,0.0031]
[1694017611203,7.33980777,25617.0,25616.0,0.0031]
[1694017611409,7.33902777,25617.0,25616.0,0.0031]
[1694017611607,7.33812777,25617.0,25616.0,0.0031]
[1694017611750,7.33776777,25617.0,25616.0,0.0031]
[1694017611950,7.34040777,25617.0,25616.0,0.0031]
[1694017612151,7.47858777,25617.0,25616.0,0.0031]
[1694017612356,7.47726777,25617.0,25616.0,0.0031]
[1694017612558,7.49358777,25617.0,25616.0,0.0031]
[1694017612819,7.49346777,25617.0,25616.0,0.0031]
[1694017613022,7.48050777,25617.0,25616.0,0.0031]
[1694017613228,7.48290777,25617.0,25616.0,0.0031]
[1694017613427,7.48182777,25617.0,25616.0,0.0031]
[1694017613631,7.48734777,25617.0,25616.0,0.0031]
[1694017613833,7.48710777,25617.0,25616.0,0.0031]
[1694017614062,1.115,25610.0,25609.0,0.0001]
[1694017614262,1.115,25610.0,25609.0,0.1001]
[1694017614263,5.95356099,25610.0,25609.0,0.1001]
[1694017614482,6.48081475,25610.0,25609.0,0.1001]
[1694017614658,6.57855475,25610.0,25609.0,0.1001]
[1694017614889,7.13649475,25610.0,25609.0,0.1001]
[1694017615090,1.617376,25602.0,25601.0,0.1829]
[1694017615263,2.37396799,25602.0,25600.0,0.0001]
[1694017616348,0.333495,25601.0,25600.0,0.1001]
[1694017617080,1.114714,25601.0,25600.0,0.1001]
[1694017617686,1.115714,25601.0,25600.0,0.1001]
[1694017617961,1.896933,25601.0,25600.0,0.1001]
[1694017619199,1.115714,25601.0,25600.0,0.1001]
[1694017620069,1.116714,25601.0,25600.0,0.1001]
[1694017620274,2.20347525,25601.0,25600.0,0.1001]
[1694017620892,1.42225625,25601.0,25600.0,0.1001]
[1694017621346,1.116714,25601.0,25600.0,0.1001]
[1694017622593,1.897933,25601.0,25600.0,0.1001]
[1694017623179,2.679152,25601.0,25600.0,0.1001]
[1694017628263,4.1245967,25601.0,25600.0,0.1001]
[1694017628666,4.2245967,25601.0,25600.0,0.1001]
[1694017628869,4.61124197,25601.0,25600.0,0.1001]
[1694017629119,4.61024197,25601.0,25600.0,0.1001]
[1694017629322,4.60924197,25601.0,25600.0,0.1001]
[1694017629482,4.61324197,25601.0,25600.0,0.1001]
[1694017629832,4.63724197,25601.0,25600.0,0.1021]
[1694017629984,4.57724197,25601.0,25600.0,0.1021]
[1694017630184,4.59724197,25601.0,25600.0,0.1021]
[1694017630586,4.57724197,25601.0,25600.0,0.1021]
[1694017630811,4.55324197,25601.0,25600.0,0.1021]
[1694017631304,4.55324197,25601.0,25600.0,0.1001]
[1694017631305,4.52924197,25601.0,25600.0,0.1001]
[1694017631480,4.57724197,25601.0,25600.0,0.1021]
[1694017632750,4.55324197,25601.0,25600.0,0.1001]
[1694017632981,4.69624197,25601.0,25600.0,0.1001]
[1694017633506,4.72024197,25601.0,25600.0,0.1001]
[1694017633929,4.69624197,25601.0,25600.0,0.1001]
[1694017634139,4.72024197,25601.0,25600.0,0.1001]
[1694017639141,4.3335967,25601.0,25600.0,0.1001]
[1694017640986,4.3105967,25601.0,25600.0,0.1001]
[1694017641398,3.4093777,25601.0,25600.0,0.1001]
[1694017641609,3.5293777,25601.0,25600.0,0.1001]
[1694017641954,3.4072777,25601.0,25600.0,0.1001]
[1694017642284,2.23941343,25601.0,25600.0,0.1001]
[1694017643642,2.11941343,25601.0,25600.0,0.1001]
[1694017643835,2.23941343,25601.0,25600.0,0.1001]
[1694017644183,2.19941343,25601.0,25600.0,0.1001]
[1694017644567,2.98063243,25601.0,25600.0,0.1001]
[1694017644948,3.3672777,25601.0,25600.0,0.1001]
[1694017645375,3.3472777,25601.0,25600.0,0.1001]
[1694017645912,4.51514197,25601.0,25600.0,0.1001]
[1694017646967,4.1284967,25601.0,25600.0,0.1001]
[1694017650440,4.22168531,25601.0,25600.0,0.1001]
[1694017650794,4.1284967,25601.0,25600.0,0.1001]
[1694017651407,4.22168531,25601.0,25600.0,0.1001]
[1694017651659,0.259395,25601.0,25600.0,0.1001]
[1694017651860,0.103,25601.0,25600.0,2.56595]
[1694017652033,0.09318861,25605.0,25600.0,3.603795]
[1694017652251,0.23297152,25606.0,25604.0,0.1221]
[1694017652450,0.23297152,25606.0,25605.0,1.662194]
[1694017652676,0.23297152,25606.0,25605.0,0.1]
[1694017652879,0.23297152,25606.0,25605.0,0.881097]
[1694017653406,0.16378291,25606.0,25605.0,0.881097]
[1694017653552,0.32014991,25606.0,25605.0,0.881097]
[1694017653754,0.43724789,25606.0,25605.0,0.883097]
[1694017654176,0.43724789,25606.0,25605.0,1.664194]
[1694017654382,0.34414991,25606.0,25605.0,1.664194]
[1694017654980,0.32014991,25606.0,25605.0,1.664194]
[1694017655207,0.34414991,25606.0,25605.0,2.7040314]
[1694017655412,0.18778291,25606.0,25605.0,2.7040314]
[1694017655784,0.14116658,25606.0,25605.0,2.7040314]
[1694017655981,0.048,25606.0,25605.0,3.21277667]
[1694017656280,0.048,25606.0,25605.0,2.8261314]
[1694017656473,0.048,25606.0,25605.0,2.569391]
[1694017656608,0.14116658,25606.0,25605.0,2.569391]
[1694017657237,0.11716658,25606.0,25605.0,2.567391]
[1694017657439,0.13916658,25606.0,25605.0,2.569391]
[1694017657642,0.13916658,25606.0,25605.0,1.788294]
[1694017657851,0.13916658,25606.0,25605.0,2.569391]
[1694017658217,0.13916658,25606.0,25605.0,2.567391]
[1694017658218,0.11516658,25606.0,25605.0,2.567391]
[1694017658424,0.25494949,25606.0,25605.0,2.567391]
[1694017658641,0.25494949,25606.0,25605.0,1.788294]
[1694017658642,0.27594949,25606.0,25605.0,1.788294]
[1694017659265,0.13616658,25606.0,25605.0,2.569391]
[1694017659465,0.18278291,25606.0,25605.0,2.569391]
[1694017659913,0.2760509,25606.0,25605.0,2.569391]
[1694017660115,0.13626799,25606.0,25605.0,2.569391]
[1694017660894,0.13626799,25606.0,25605.0,3.350488]
[1694017661092,0.13626799,25606.0,25605.0,3.6855368]
[1694017661293,0.043,25606.0,25605.0,3.6855368]
[1694017661782,0.043,25606.0,25605.0,4.07218207]
[1694017662968,0.022,25606.0,25605.0,4.07018207]
[1694017663395,0.021,25606.0,25605.0,4.07018207]
[1694017663619,0.23308641,25608.0,25605.0,4.07018207]
[1694017663803,0.022,25606.0,25605.0,3.94808207]
[1694017664004,0.023,25606.0,25605.0,4.07618207]
[1694017664213,0.001,25606.0,25605.0,4.07418207]
[1694017664422,0.002,25606.0,25605.0,4.07818207]
[1694017665684,0.002,25606.0,25605.0,3.29708507]
[1694017666070,0.002,25606.0,25605.0,4.07818207]
[1694017671212,0.002,25606.0,25605.0,4.23818207]
[1694017672853,0.002,25606.0,25605.0,5.03524207]
[1694017673002,0.002,25606.0,25605.0,5.04064207]
[1694017673212,0.002,25606.0,25605.0,5.05366207]
[1694017673415,0.39138641,25613.0,25608.0,0.1221]
[1694017673625,0.09323456,25613.0,25612.0,0.1221]
[1694017673826,0.09323456,25613.0,25612.0,0.2221]
[1694017674027,0.09323456,25613.0,25612.0,3.345632]
[1694017674223,0.38939641,25614.0,25612.0,3.345632]
[1694017674704,0.54169641,25614.0,25612.0,3.345632]
[1694017674904,0.54169641,25614.0,25612.0,3.69016676]
[1694017675308,0.40184456,25614.0,25612.0,3.345632]
[1694017675845,0.24553456,25614.0,25612.0,3.345632]
[1694017676250,0.1763,25614.0,25612.0,3.347632]
[1694017676455,0.2003,25614.0,25612.0,3.349632]
[1694017678131,0.2003,25614.0,25612.0,2.446649]
[1694017680799,0.41696735,25614.0,25612.0,0.884883]
[1694017681004,0.41696735,25614.0,25612.0,0.104]
[1694017681210,0.29865438,25613.0,25612.0,0.104]
[1694017681418,0.29865438,25613.0,25612.0,0.884882]
[1694017682046,0.29865438,25613.0,25612.0,0.882882]
[1694017682432,0.32065438,25613.0,25612.0,0.882882]
[1694017682966,0.34265438,25613.0,25612.0,0.104]
[1694017683587,0.34265438,25613.0,25612.0,0.884883]
[1694017684565,0.34265438,25613.0,25612.0,0.104]
[1694017685166,1.90436038,25613.0,25612.0,0.104]
[1694017685385,1.99759494,25613.0,25612.0,0.104]
[1694017685586,1.12350738,25613.0,25612.0,0.104]
[1694017685792,0.43588894,25613.0,25612.0,0.104]
[1694017685993,0.34265438,25613.0,25612.0,0.104]
[1694017688858,0.34265438,25613.0,25612.0,0.884883]
[1694017689103,0.044,25613.0,25612.0,0.884883]
[1694017690234,0.044,25613.0,25612.0,0.104]
[1694017690672,0.044,25613.0,25612.0,1.665766]
[1694017690886,0.044,25613.0,25612.0,1.9885267]
[1694017691095,0.044,25613.0,25612.0,2.446649]
[1694017692105,0.044,25613.0,25612.0,0.884883]
[1694017692360,0.37348483,25613.0,25612.0,0.104]
[1694017693192,0.37348483,25613.0,25612.0,0.884883]
[1694017694428,0.42010212,25613.0,25612.0,0.884883]
[1694017694840,0.42010212,25613.0,25612.0,0.104]
[1694017695264,1.20095512,25613.0,25612.0,0.104]
[1694017695468,1.2475724,25613.0,25612.0,0.104]
[1694017696281,2.0284254,25613.0,25612.0,0.104]
[1694017696481,2.18409497,25613.0,25612.0,0.104]
[1694017697443,1.95100856,25613.0,25612.0,0.104]
[1694017698434,2.73186156,25613.0,25612.0,0.104]
[1694017699771,3.01156526,25613.0,25612.0,0.104]
[1694017703032,3.39821053,25613.0,25612.0,0.104]
[1694017703456,3.01156526,25613.0,25612.0,0.104]
[1694017703841,3.19800212,25613.0,25612.0,0.104]
[1694017704370,2.91829842,25613.0,25612.0,0.104]
[1694017709382,3.23296508,25613.0,25612.0,0.104]
[1694017712095,2.62280927,25613.0,25612.0,0.104]
[1694017712294,3.22128207,25613.0,25612.0,0.104]
[1694017713125,3.34338207,25613.0,25612.0,0.104]
[1694017713327,2.56252907,25613.0,25612.0,0.104]
[1694017717748,3.02822354,25613.0,25612.0,0.104]
[1694017717876,2.24737054,25613.0,25612.0,0.104]
[1694017720567,1.46651754,25613.0,25612.0,0.104]
[1694017721189,1.59736088,25613.0,25612.0,0.104]
[1694017721391,1.78170774,25613.0,25612.0,0.104]
[1694017723130,1.65960774,25613.0,25612.0,0.104]
[1694017723533,2.44046074,25613.0,25612.0,0.104]
[1694017723739,1.65960774,25613.0,25612.0,0.104]
[1694017725600,1.34441754,25613.0,25612.0,0.104]
[1694017725801,2.12527054,25613.0,25612.0,0.104]
[1694017726342,1.34441754,25613.0,25612.0,0.104]
[1694017726568,2.12527054,25613.0,25612.0,0.104]
[1694017727105,1.34441754,25613.0,25612.0,0.104]
[1694017727654,2.12527054,25613.0,25612.0,0.104]
[1694017728268,2.51191581,25613.0,25612.0,0.104]
[1694017729732,2.12527054,25613.0,25612.0,0.104]
[1694017731083,2.90612354,25613.0,25612.0,0.104]
[1694017731292,3.95947154,25613.0,25612.0,0.104]
[1694017733659,3.91547154,25613.0,25612.0,0.1]
[1694017734076,3.96347154,25613.0,25612.0,0.102]
[1694017735131,4.35011681,25613.0,25612.0,0.102]
[1694017735510,4.64597978,25613.0,25612.0,0.102]
[1694017735723,4.35011681,25613.0,25612.0,0.102]
[1694017738713,4.03367154,25613.0,25612.0,0.102]
[1694017738933,4.03505154,25613.0,25612.0,0.08592838]
[1694017739137,4.03493154,25613.0,25612.0,0.08592838]
[1694017739507,4.03499154,25613.0,25612.0,0.08592838]
[1694017739786,4.03421154,25613.0,25612.0,0.08592838]
[1694017739993,4.03415154,25613.0,25612.0,0.08592838]
[1694017740172,4.42079681,25613.0,25612.0,0.08592838]
[1694017740375,4.41845681,25613.0,25612.0,0.08592838]
[1694017740579,4.35011681,25613.0,25612.0,0.08592838]
[1694017740999,4.42193681,25613.0,25612.0,0.08592838]
[1694017741358,4.50265681,25613.0,25612.0,0.08592838]
[1694017741566,4.92533681,25613.0,25612.0,0.002]
[1694017741771,5.24685044,25613.0,25612.0,0.002]
[1694017741950,6.09641663,25613.0,25612.0,0.002]
[1694017742180,5.63555044,25613.0,25612.0,0.002]
[1694017742412,5.63141044,25613.0,25612.0,0.002]
[1694017742599,5.61419044,25613.0,25612.0,0.001]
[1694017742811,5.63663044,25613.0,25612.0,0.001]
[1694017743034,5.64089044,25613.0,25612.0,0.001]
[1694017743279,0.04,25611.0,25603.0,0.781148]
[1694017743494,0.23312632,25604.0,25602.0,1.562349]
[1694017743720,0.34115978,25603.0,25602.0,2.343522]
[1694017743927,0.34115978,25603.0,25602.0,2.443522]
[1694017744139,0.18650167,25603.0,25602.0,2.443522]
[1694017744350,0.3263623,25603.0,25602.0,2.443522]
[1694017744561,0.3263623,25603.0,25602.0,0.881172]
[1694017744805,0.3263623,25603.0,25602.0,0.882172]
[1694017744806,0.28614066,25603.0,25602.0,0.882172]
[1694017745038,0.44250766,25603.0,25602.0,1.66236]
[1694017745453,0.34286867,25603.0,25602.0,1.66236]
[1694017746456,0.44064164,25603.0,25602.0,1.66336]
[1694017746864,0.44064164,25603.0,25602.0,1.66436]
[1694017746865,0.67576796,25603.0,25602.0,1.66436]
[1694017747022,0.44264164,25603.0,25602.0,2.445548]
[1694017747425,0.34686867,25603.0,25602.0,2.445548]
[1694017747641,0.48668611,25603.0,25602.0,2.445548]
[1694017750108,0.34686867,25603.0,25602.0,2.445548]
[1694017750312,0.48664175,25603.0,25602.0,2.445548]
[1694017750745,0.48664175,25603.0,25602.0,1.66436]
[1694017751713,2.17105775,25603.0,25602.0,0.102]
[1694017751936,3.10835552,25603.0,25602.0,0.102]
[1694017752352,3.49500079,25603.0,25602.0,0.102]
[1694017752875,3.49500079,25603.0,25602.0,0.101]
[1694017752876,4.85237571,25603.0,25602.0,0.101]
[1694017753092,4.85237571,25603.0,25602.0,0.102]
[1694017753093,4.49195993,25603.0,25602.0,0.102]
[1694017753513,4.59546351,25603.0,25602.0,0.102]
[1694017753731,4.48876935,25603.0,25602.0,0.101]
[1694017753942,4.48876935,25603.0,25602.0,0.1]
[1694017753943,4.73250765,25603.0,25602.0,0.1]
[1694017754376,4.66536174,25603.0,25602.0,0.101]
[1694017754592,5.15159804,25603.0,25602.0,0.1]
[1694017754803,5.46691857,25603.0,25602.0,0.1]
[1694017755010,5.46691857,25603.0,25600.0,0.0001]
[1694017755011,0.14,25601.0,25600.0,0.0001]
[1694017755222,0.14,25601.0,25600.0,0.1001]
[1694017755223,6.78017011,25601.0,25600.0,0.1001]
[1694017755451,6.92996575,25601.0,25600.0,2.855e-05]
[1694017755656,7.07612575,25601.0,25600.0,2.855e-05]
[1694017755869,6.92900575,25601.0,25600.0,2.855e-05]
[1694017756071,6.92852575,25601.0,25600.0,2.855e-05]
[1694017756287,7.48652575,25601.0,25600.0,2.855e-05]
[1694017756495,7.48532575,25601.0,25600.0,2.855e-05]
[1694017756706,7.47884575,25601.0,25600.0,2.855e-05]
[1694017756910,7.36316575,25601.0,25600.0,2.855e-05]
[1694017757125,7.36124575,25601.0,25600.0,2.855e-05]
[1694017757330,7.44152033,25601.0,25600.0,2.855e-05]
[1694017757533,7.1630465,25601.0,25600.0,2.855e-05]
[1694017757738,7.1653265,25601.0,25600.0,2.855e-05]
[1694017757962,7.1827465,25601.0,25600.0,2.855e-05]
[1694017758153,7.1821465,25601.0,25600.0,2.855e-05]
[1694017758369,7.1816065,25601.0,25600.0,2.855e-05]
[1694017758568,7.1810065,25601.0,25600.0,2.855e-05]
[1694017758775,7.1829265,25601.0,25600.0,2.855e-05]
[1694017758985,7.1973265,25601.0,25600.0,2.855e-05]
[1694017759207,7.1936065,25601.0,25600.0,2.855e-05]
[1694017759408,7.1847865,25601.0,25600.0,2.855e-05]
[1694017759610,7.53905358,25601.0,25600.0,2.855e-05]